bitfinex/quotes_ETHUSD_20251110
["timestamp","ask_amount","ask_price","bid_price","bid_amount"]
[1762737076531,2.74900662,3637.7,3636.9,3.94686565]
[1762737076532,2.74900662,3637.7,3637.1,0.47397619]
[1762737076727,0.1892,3638.0,3637.1,0.47397619]
[1762737076963,0.1892,3638.0,3636.9,0.72331289]
[1762737076964,0.1892,3638.0,3637.2,0.02749367]
[1762737077139,0.1892,3638.0,3637.3,0.47397619]
[1762737077337,0.1892,3638.0,3637.4,0.02749216]
[1762737077564,0.1892,3638.0,3637.4,0.83101321]
[1762737077884,2.74889462,3637.9,3637.4,0.47397619]
[1762737078081,2.74899848,3637.7,3636.9,1.259712]
[1762737078399,0.4995,3637.8,3636.9,1.484]
[1762737078695,0.1892,3638.0,3637.0,0.1484]
[1762737078894,2.74883861,3637.9,3637.0,0.1484]
[1762737079098,0.1892,3638.0,3637.1,1.259712]
[1762737079284,2.74889369,3637.9,3637.2,1.259712]
[1762737079485,2.74889369,3637.9,3637.3,0.41575528]
[1762737079675,0.1892,3638.0,3637.3,0.41575528]
[1762737079999,2.74893497,3637.8,3637.3,0.41575528]
[1762737080198,0.1892,3638.0,3637.3,0.41575528]
[1762737080700,2.74885154,3637.9,3637.3,0.41575528]
[1762737080905,0.002,3638.2,3637.5,1.259712]
[1762737081070,0.002,3638.2,3637.6,0.02749065]
[1762737081275,0.002,3638.2,3637.8,1.259712]
[1762737081495,0.002,3638.2,3637.9,0.50146457]
[1762737081711,0.43041856,3638.1,3637.6,1.259712]
[1762737081897,0.43041856,3638.1,3637.7,0.47397619]
[1762737082084,0.6419,3637.7,3636.8,1.484]
[1762737082259,2.74914089,3637.5,3636.8,1.484]
[1762737082460,0.9522,3637.6,3636.3,0.001]
[1762737082696,2.74964341,3636.9,3636.3,1.485]
[1762737082969,0.4995,3637.5,3636.5,1.259712]
[1762737083180,2.74964766,3636.9,3636.3,1.6335]
[1762737083397,3.2487004,3637.5,3636.3,0.1495]
[1762737083596,3.3918725,3636.4,3636.3,0.001]
[1762737083917,3.8913725,3636.4,3636.3,0.001]
[1762737084491,1.1414,3636.4,3636.3,0.001]
[1762737085059,3.8913725,3636.4,3636.3,0.001]
[1762737085889,1.1414,3636.4,3636.3,0.001]
[1762737086224,3.918812,3636.4,3636.3,0.001]
[1762737086402,2.75057762,3635.6,3635.5,0.001]
[1762737086717,3.39247762,3635.6,3635.5,0.001]
[1762737086873,3.89197762,3635.6,3635.5,0.001]
[1762737087380,1.1414,3635.6,3635.5,0.001]
[1762737087810,3.89197762,3635.6,3635.5,0.001]
[1762737088771,4.02877762,3635.6,3635.5,0.001]
[1762737089008,4.73413752,3635.6,3635.5,0.001]
[1762737089221,4.70669802,3635.6,3635.5,0.001]
[1762737092183,0.98252816,3638.1,3635.6,30.0]
[1762737092522,0.002,3638.2,3638.1,0.405504]
[1762737092691,0.002,3638.2,3637.7,1.259712]
[1762737092877,0.002,3638.2,3637.4,1.485]
[1762737093072,0.002,3638.2,3637.5,0.38881674]
[1762737093279,0.002,3638.2,3638.1,2.7486875]
[1762737093576,0.002,3638.2,3638.1,4.0083995]
[1762737094295,0.002,3638.2,3638.1,1.259712]
[1762737095091,2.75061195,3638.2,3638.1,1.259712]
[1762737095426,3.24031195,3638.2,3638.1,1.259712]
[1762737096324,0.002,3638.2,3638.1,1.259712]
[1762737096530,2.75061195,3638.2,3638.1,1.259712]
[1762737096824,0.4917,3638.2,3638.1,1.259712]
[1762737097025,0.4917,3638.2,3636.9,0.96126695]
[1762737097240,0.4917,3638.2,3636.6,0.96126695]
[1762737097443,0.4917,3638.2,3636.4,1.484]
[1762737097444,2.74938271,3637.2,3636.4,1.484]
[1762737097607,2.7486875,3638.1,3635.9,1.97176375]
[1762737097808,0.1961,3637.1,3636.3,2.74997705]
[1762737098041,0.002,3638.2,3636.0,1.484]
[1762737098042,2.74937266,3637.2,3636.2,2.75005053]
[1762737098241,2.74937266,3637.2,3636.3,1.259712]
[1762737098242,2.94547266,3637.2,3636.3,1.259712]
[1762737098447,2.94547266,3637.2,3636.4,0.52695478]
[1762737098744,2.94547266,3637.2,3636.3,2.75004013]
[1762737099466,0.1961,3640.0,3636.2,1.259712]
[1762737099673,0.98252816,3640.8,3640.1,1.259712]
[1762737099965,0.002,3641.2,3640.2,1.309712]
[1762737099966,0.1961,3640.9,3640.2,1.309712]
[1762737100123,0.4897,3640.7,3639.5,1.484]
[1762737100506,0.4897,3640.7,3639.6,1.259712]
[1762737100707,3.23642734,3640.7,3639.5,1.484]
[1762737100908,0.4897,3640.7,3639.7,1.259712]
[1762737101143,3.23642607,3640.7,3639.6,0.54913953]
[1762737101337,0.1961,3640.9,3639.5,1.484]
[1762737101655,0.002,3641.2,3639.7,1.259712]
[1762737101945,0.002,3641.2,3639.6,2.79245467]
[1762737101946,0.002,3641.2,3639.6,0.0449]
[1762737102263,0.002,3641.2,3639.9,1.259712]
[1762737102561,0.002,3641.2,3640.8,1.259712]
[1762737102761,0.002,3641.2,3641.1,0.1368]
[1762737103342,0.43203416,3641.2,3640.9,1.484]
[1762737103855,0.43203416,3641.2,3641.0,1.259712]
[1762737104012,0.43203416,3641.2,3640.9,4.37895496]
[1762737104013,0.002,3641.2,3640.9,1.6324]
[1762737104213,0.002,3641.2,3641.1,4.00613478]
[1762737104449,0.002,3641.2,3641.1,1.484]
[1762737104884,0.002,3641.2,3640.1,4.83430871]
[1762737105052,0.002,3641.2,3640.7,1.484]
[1762737105239,0.002,3641.2,3640.9,1.259712]
[1762737105440,0.002,3641.2,3640.7,1.484]
[1762737105441,0.002,3641.2,3641.1,4.00613478]
[1762737105636,0.1961,3642.6,3641.7,2.74591573]
[1762737105843,0.1961,3643.0,3641.8,0.54920337]
[1762737106152,0.4897,3643.5,3641.8,1.259712]
[1762737106336,0.1961,3643.5,3642.2,1.259712]
[1762737106536,0.1961,3643.5,3642.3,0.60940207]
[1762737106776,2.94049955,3643.8,3642.3,0.60940207]
[1762737107069,2.74447294,3643.7,3642.3,0.60940207]
[1762737107239,2.74454314,3643.6,3642.6,2.74522349]
[1762737107434,0.53910481,3643.8,3642.3,0.60940207]
[1762737107635,0.1961,3643.8,3642.5,2.74536719]
[1762737107836,0.1961,3643.8,3643.0,1.259712]
[1762737108038,0.1961,3643.8,3643.0,2.74497929]
[1762737108237,0.4897,3644.0,3643.0,2.74497929]
[1762737108238,0.1961,3644.4,3643.0,1.259712]
[1762737108440,2.74424912,3644.0,3643.1,1.483]
[1762737108640,2.74444737,3643.8,3643.2,1.483]
[1762737108875,2.74444737,3643.8,3643.3,1.483]
[1762737108876,2.74438772,3643.8,3643.3,1.483]
[1762737109169,0.4739,3643.9,3643.3,1.483]
[1762737109170,2.74449773,3643.7,3643.3,1.483]
[1762737109485,2.74449773,3643.7,3641.8,2.74582633]
[1762737109486,0.4739,3643.9,3642.4,0.0449]
[1762737109701,2.74452217,3643.7,3643.2,1.483]
[1762737109870,0.4739,3643.9,3643.2,1.483]
[1762737110071,2.74438772,3643.8,3643.2,1.483]
[1762737110288,0.4739,3643.9,3643.2,1.483]
[1762737110490,2.74461832,3643.5,3643.2,1.483]
[1762737110691,2.74438772,3643.8,3643.2,1.483]
[1762737111008,3.21809982,3644.1,3643.3,1.483]
[1762737111160,2.74476436,3643.3,3643.2,1.483]
[1762737111362,2.74494708,3643.1,3643.0,0.405504]
[1762737111596,2.74494708,3643.1,3643.0,1.483]
[1762737111889,2.74469476,3643.4,3643.0,1.483]
[1762737112101,2.74489695,3643.2,3642.9,0.0449]
[1762737112276,0.1888,3643.0,3641.8,1.483]
[1762737112475,0.1888,3643.3,3641.8,1.63579]
[1762737112800,0.32182374,3643.9,3642.2,0.405504]
[1762737112801,0.4739,3643.5,3642.2,0.405504]
[1762737112957,2.74489952,3643.2,3642.5,0.405504]
[1762737113163,2.74507801,3642.9,3642.7,0.405504]
[1762737113360,2.9337856,3643.1,3642.8,0.1368]
[1762737113566,0.1888,3643.1,3642.7,0.405504]
[1762737113808,2.74504605,3643.0,3642.8,0.405504]
[1762737113986,2.74506574,3642.9,3642.8,0.405504]
[1762737114404,2.93371514,3643.1,3642.8,0.405504]
[1762737114405,0.1888,3643.1,3642.8,0.1368]
[1762737114558,2.74508105,3642.9,3642.8,0.1368]
[1762737114756,2.74508105,3642.9,3642.5,0.405504]
[1762737114978,2.74529182,3642.6,3642.5,0.405504]
[1762737115262,2.74506574,3642.9,3642.8,0.1368]
[1762737115464,0.1888,3643.7,3642.6,0.02745291]
[1762737115702,2.74440694,3643.8,3643.0,3.15048304]
[1762737115958,0.4739,3644.0,3643.9,0.1368]
[1762737116109,0.4739,3644.0,3643.1,1.482]
[1762737116321,2.74438772,3643.8,3643.7,0.1368]
[1762737116802,3.83342773,3643.8,3643.7,0.1368]
[1762737117965,1.08904001,3643.8,3643.6,0.1368]
[1762737118205,0.4739,3643.8,3643.6,0.1368]
[1762737118363,0.1888,3644.1,3643.6,0.1368]
[1762737118564,2.74436571,3643.9,3643.6,0.1368]
[1762737118871,2.74436571,3643.9,3643.3,1.259712]
[1762737118872,2.74431241,3643.9,3643.8,0.1368]
[1762737119175,0.1888,3644.1,3643.8,0.1368]
[1762737119376,2.93298266,3644.1,3644.0,0.1368]
[1762737119786,3.40688266,3644.1,3644.0,0.1368]
[1762737120388,0.1888,3647.4,3645.8,2.74287689]
[1762737120588,0.1888,3646.9,3645.7,1.482]
[1762737120941,0.1888,3646.9,3645.1,5.07720655]
[1762737120942,0.1888,3646.9,3645.1,1.482]
[1762737121094,0.1888,3646.9,3645.2,1.482]
[1762737121095,0.5013395,3646.8,3645.2,1.482]
[1762737121285,2.74279079,3646.0,3645.2,1.482]
[1762737121491,0.1888,3646.9,3645.2,1.482]
[1762737121492,2.74228048,3646.6,3645.2,1.482]
[1762737121690,0.4739,3646.3,3645.2,1.482]
[1762737121925,2.74287242,3645.9,3645.2,1.482]
[1762737122085,2.742905,3645.8,3645.2,1.482]
[1762737122287,0.4739,3646.3,3645.2,1.482]
[1762737122486,0.479,3646.8,3645.3,0.02743258]
[1762737122711,0.1888,3646.9,3645.3,0.02743258]
[1762737122712,0.1888,3646.9,3645.8,1.259712]
[1762737122914,0.479,3647.3,3646.1,1.259712]
[1762737123113,2.74209621,3646.9,3646.1,1.259712]
[1762737123316,0.1909,3649.2,3646.3,1.259712]
[1762737123533,0.6678,3648.0,3646.2,0.0449]
[1762737123736,0.6678,3648.0,3646.9,1.259712]
[1762737124053,2.93010055,3648.0,3646.7,2.74219541]
[1762737124266,0.1909,3649.3,3647.6,5.07720655]
[1762737124551,5.07720655,3650.2,3647.7,1.482]
[1762737124857,0.1909,3650.3,3647.8,0.6774]
[1762737125065,0.42922239,3649.6,3648.3,1.259712]
[1762737125269,0.42922239,3649.6,3648.4,0.75966306]
[1762737125428,2.74010766,3649.5,3648.5,1.748512]
[1762737125618,0.479,3650.2,3648.5,0.4888]
[1762737125808,0.1909,3650.3,3649.6,0.01040474]
[1762737126021,2.73995122,3649.7,3649.6,0.01040474]
[1762737126310,0.50301355,3650.3,3649.5,0.09900474]
[1762737126311,0.1909,3650.3,3649.5,0.09900474]
[1762737126533,0.1909,3650.3,3648.6,0.099]
[1762737126534,0.0274395,3650.2,3648.6,0.099]
[1762737126734,0.0274395,3650.2,3647.8,0.1886]
[1762737126735,2.74049398,3649.0,3647.8,0.1886]
[1762737126947,0.2740494,3648.9,3647.8,0.1886]
[1762737127117,0.1909,3650.5,3647.8,1.448312]
[1762737127118,0.479,3650.0,3647.8,1.448312]
[1762737127344,2.73972602,3650.0,3647.8,0.1886]
[1762737127556,0.479,3649.9,3647.8,0.6774]
[1762737127761,2.74078836,3648.6,3647.8,0.6774]
[1762737127970,0.1909,3654.3,3650.2,0.099]
[1762737128123,0.479,3652.8,3650.3,0.42346348]
[1762737128323,0.479,3652.8,3649.6,1.481]
[1762737128324,0.479,3652.8,3649.6,0.05]
[1762737128545,0.479,3652.8,3649.8,0.099]
[1762737128722,2.73770087,3652.7,3649.8,0.099]
[1762737128924,2.73896017,3651.1,3649.9,0.4888]
[1762737129131,2.73926936,3650.7,3649.9,0.4888]
[1762737129367,2.73899237,3651.0,3649.9,0.4888]
[1762737129565,0.1909,3651.4,3649.9,0.8216512]
[1762737129843,2.73912802,3650.8,3649.9,0.8216512]
[1762737130229,0.479,3651.8,3649.9,0.8216512]
[1762737130230,0.1909,3651.7,3650.0,0.4888]
[1762737130424,2.73860057,3651.5,3651.3,0.1368]
[1762737130750,3.03162563,3651.4,3651.3,0.1368]
[1762737131049,3.51062563,3651.4,3651.3,0.1368]
[1762737131358,3.51062563,3651.4,3649.8,0.099]
[1762737131359,0.77195006,3651.4,3649.8,0.099]
[1762737131538,2.73952914,3650.3,3649.8,0.099]
[1762737131739,3.21775058,3651.3,3649.1,1.448312]
[1762737131939,2.73950114,3650.3,3649.4,0.099]
[1762737132157,0.479,3651.2,3649.4,0.099]
[1762737132361,0.479,3651.2,3649.1,0.1886]
[1762737132362,3.21783456,3651.2,3649.1,0.1886]
[1762737132561,3.21783456,3651.2,3649.5,0.099]
[1762737132862,2.73975264,3650.0,3649.5,0.099]
[1762737133168,0.479,3651.2,3649.5,0.099]
[1762737133526,2.73978605,3650.0,3649.5,0.099]
[1762737133750,0.479,3651.2,3649.5,0.5878]
[1762737133935,2.73935257,3650.5,3649.5,1.847512]
[1762737134114,2.73960715,3650.2,3649.5,0.5878]
[1762737134316,2.73965786,3650.1,3649.5,0.5878]
[1762737134645,2.73959085,3650.2,3649.5,0.5878]
[1762737134843,2.73926559,3650.7,3649.7,1.259712]
[1762737135018,2.73813024,3652.2,3649.6,3.99973779]
[1762737135019,2.73914378,3650.8,3649.6,3.99973779]
[1762737135213,0.1909,3651.5,3649.7,0.94755378]
[1762737135649,0.1909,3651.5,3649.6,1.259712]
[1762737135650,0.6699,3651.5,3649.8,0.4888]
[1762737135853,2.73875058,3651.3,3649.8,0.4888]
[1762737136052,2.73967959,3650.1,3649.5,0.099]
[1762737136215,2.7395857,3650.2,3649.5,0.099]
[1762737136423,2.73966412,3650.1,3649.5,0.099]
[1762737136636,2.73912567,3650.8,3650.7,0.0519]
[1762737137025,0.479,3651.9,3650.7,0.0519]
[1762737137351,2.73911807,3650.9,3650.7,0.0519]
[1762737137653,0.479,3651.9,3650.7,0.0519]
[1762737137952,0.55080922,3651.7,3650.7,0.0519]
[1762737138159,2.73884049,3651.2,3650.7,0.0519]
[1762737138357,2.73884358,3651.2,3650.8,0.92169525]
[1762737138653,2.73820222,3652.1,3650.8,0.92169525]
[1762737138654,2.73876382,3651.3,3650.8,0.894304]
[1762737138854,0.479,3652.5,3651.0,0.405504]
[1762737138855,0.479,3652.3,3651.0,0.405504]
[1762737139031,2.73865316,3651.5,3650.8,0.405504]
[1762737139360,0.479,3652.3,3650.8,0.405504]
[1762737139547,2.73870336,3651.4,3650.8,0.405504]
[1762737139752,2.73889356,3651.2,3650.8,0.405504]
[1762737139945,2.73890125,3651.1,3650.8,0.405504]
[1762737140145,2.73917579,3650.8,3650.5,0.405504]
[1762737140656,2.73924642,3650.7,3650.5,0.405504]
[1762737141064,2.73845058,3651.7,3650.5,0.405504]
[1762737141218,3.21745058,3651.7,3650.5,0.405504]
[1762737141558,0.479,3651.6,3650.5,0.405504]
[1762737141857,2.73860057,3651.5,3650.0,0.0519]
[1762737142022,2.73882559,3651.2,3651.1,0.1368]
[1762737142223,2.73926528,3650.7,3649.6,1.479]
[1762737142524,1.06232532,3651.2,3650.6,0.1368]
[1762737142723,2.7389006,3651.1,3650.9,0.1368]
[1762737142955,2.73897562,3651.0,3650.9,0.1368]
[1762737143165,2.73897562,3651.0,3649.5,0.099]
[1762737143166,2.74001068,3649.7,3649.5,0.099]
[1762737143363,2.74024852,3649.4,3649.1,0.1886]
[1762737143666,2.74023453,3649.4,3649.1,0.1886]
[1762737143835,2.74031466,3649.3,3649.1,0.1886]
[1762737144040,2.74031466,3649.3,3648.6,0.4888]
[1762737144041,2.74024693,3649.4,3648.8,0.1886]
[1762737144241,0.1909,3649.7,3648.8,0.1886]
[1762737144455,0.1909,3649.7,3647.9,2.74122812]
[1762737144456,2.74034659,3649.2,3648.2,1.479]
[1762737144663,0.479,3649.6,3648.2,1.479]
[1762737144975,0.1909,3649.7,3648.0,0.001]
[1762737144976,2.74079877,3648.6,3648.0,0.001]
[1762737145132,2.7408524,3648.5,3648.0,0.001]
[1762737145464,0.479,3649.5,3648.0,0.001]
[1762737145465,0.479,3649.2,3648.0,0.02841228]
[1762737145669,2.74040174,3649.1,3648.0,0.001]
[1762737145837,2.74077728,3648.6,3648.5,0.00842784]
[1762737146044,2.95911678,3648.6,3648.5,0.00842784]
[1762737146246,3.43811678,3648.6,3648.5,0.00842784]
[1762737146436,3.43811678,3648.6,3648.0,0.001]
[1762737146437,2.74115292,3648.1,3648.0,0.001]
[1762737146637,3.01526821,3648.1,3648.0,0.001]
[1762737146974,3.49426821,3648.1,3648.0,0.001]
[1762737147469,3.49426821,3648.1,3647.6,0.001]
[1762737147470,2.74145351,3647.7,3647.6,0.001]
[1762737147675,3.22045351,3647.7,3647.6,0.001]
[1762737147975,2.74175417,3647.3,3647.2,0.001]
[1762737148340,3.22075417,3647.3,3647.2,0.001]
[1762737149803,3.24819367,3647.3,3647.2,0.001]
[1762737150073,3.22075417,3647.3,3647.2,0.001]
[1762737150290,0.479,3647.3,3647.2,0.001]
[1762737150435,2.74175417,3647.3,3647.2,0.001]
[1762737151035,3.22075417,3647.3,3647.2,0.001]
[1762737151634,3.14622687,3648.7,3647.2,0.001]
[1762737151635,2.74174795,3647.4,3647.2,0.001]
[1762737151840,2.74168738,3647.4,3647.2,0.001]
[1762737152249,2.74153557,3647.6,3647.2,0.001]
[1762737152451,2.74139696,3647.8,3647.2,0.001]
[1762737152986,0.682,3648.6,3647.2,0.001]
[1762737153176,0.183,3648.9,3647.7,1.259712]
[1762737153338,2.92355768,3648.9,3648.4,0.1368]
[1762737153587,2.74062705,3648.8,3648.7,0.1368]
[1762737154120,3.23172705,3648.8,3648.7,0.1368]
[1762737154314,0.183,3648.9,3648.7,0.1368]
[1762737154608,2.74062705,3648.8,3648.7,0.1368]
[1762737154831,0.4911,3649.5,3649.0,0.1368]
[1762737155014,2.74040174,3649.1,3649.0,0.1368]
[1762737155820,0.84698453,3649.4,3649.1,0.00822164]
[1762737156018,2.74032664,3649.2,3649.1,0.00822164]
[1762737156216,2.74007513,3649.6,3649.1,0.00822164]
[1762737156415,2.74029251,3649.3,3649.1,0.00822164]
[1762737156711,0.1909,3649.7,3649.1,0.00822164]
[1762737157279,2.74032664,3649.2,3649.1,0.00822164]
[1762737158020,3.23142664,3649.2,3649.1,0.00822164]
[1762737158378,3.82859264,3649.2,3649.1,0.00822164]
[1762737158991,3.85603214,3649.2,3649.1,0.00822164]
[1762737159405,3.85603214,3649.2,3647.7,1.71315685]
[1762737159406,2.7412322,3648.0,3647.7,1.48]
[1762737160018,2.7412322,3648.0,3647.2,0.001]
[1762737160019,0.4911,3648.0,3647.2,0.001]
[1762737160196,2.74169496,3647.4,3647.2,0.001]
[1762737160399,2.74167464,3647.5,3647.2,0.001]
[1762737160633,0.4911,3648.0,3647.2,0.001]
[1762737160929,2.74175026,3647.4,3647.2,0.001]
[1762737161140,2.74175417,3647.3,3647.2,0.001]
[1762737161649,3.23285417,3647.3,3647.2,0.001]
[1762737165271,2.74182934,3647.2,3647.1,0.001]
[1762737165568,4.12560362,3647.2,3647.1,0.001]
[1762737168065,4.12560362,3647.2,3646.8,0.001]
[1762737168266,4.12560362,3647.2,3646.4,0.001]
[1762737168267,2.74235568,3646.5,3646.4,0.001]
[1762737168742,3.23755568,3646.5,3646.4,0.001]
[1762737168935,4.10975074,3646.5,3646.4,0.001]
[1762737169748,4.10975074,3646.5,3644.4,1.48]
[1762737169749,2.74348293,3645.1,3644.4,1.48]
[1762737169956,2.74329949,3645.3,3644.4,1.259712]
[1762737170276,2.74341609,3645.1,3644.3,1.448312]
[1762737170480,2.74333369,3645.2,3644.3,1.63050043]
[1762737170636,0.1854,3645.4,3644.6,1.259712]
[1762737170836,2.74338417,3645.2,3644.4,0.34356124]
[1762737171446,0.1854,3645.4,3644.3,0.1886]
[1762737171447,0.0274395,3645.1,3644.3,0.1886]
[1762737171647,2.74325844,3645.3,3644.3,0.1886]
[1762737171960,0.4952,3645.3,3644.1,0.0519]
[1762737172287,0.4952,3645.2,3644.0,1.44190043]
[1762737172494,2.74391831,3644.5,3643.8,0.0519]
[1762737172695,2.74363323,3644.9,3643.3,2.92190043]
[1762737172991,2.74415856,3644.2,3643.3,2.739712]
[1762737173289,2.74416698,3644.1,3643.4,0.42806124]
[1762737173491,0.1854,3644.4,3643.4,0.42806124]
[1762737173802,2.74430827,3644.0,3643.4,0.42806124]
[1762737174090,2.74430827,3644.0,3643.2,0.099]
[1762737174492,0.6806,3644.4,3643.3,1.259712]
[1762737174799,0.1854,3644.4,3643.2,0.099]
[1762737175160,0.1854,3644.4,3643.2,2.84381773]
[1762737175361,2.74433087,3643.9,3643.3,0.55973302]
[1762737175573,0.4952,3644.3,3643.0,0.0519]
[1762737175857,0.4952,3644.2,3643.1,2.84390871]
[1762737176212,0.1854,3644.8,3643.4,1.259712]
[1762737176384,2.74371004,3644.7,3643.4,1.259712]
[1762737176581,0.4952,3644.7,3643.2,1.76539087]
[1762737176878,2.74410369,3644.2,3643.3,1.259712]
[1762737177078,0.4952,3644.6,3643.4,1.84660431]
[1762737177280,0.4952,3644.6,3643.7,2.74443905]
[1762737177485,2.92904904,3644.8,3643.8,0.02744387]
[1762737177680,0.1854,3644.8,3644.0,1.259712]
[1762737177880,0.1854,3644.8,3643.6,1.259712]
[1762737177881,2.74391732,3644.5,3643.6,1.259712]
[1762737178191,2.74391732,3644.5,3644.4,0.1368]
[1762737178575,2.74420401,3644.1,3643.4,0.58689231]
[1762737178776,2.74420401,3644.1,3643.9,0.1368]
[1762737179073,0.1368,3644.5,3643.9,0.1368]
[1762737179273,0.4703,3644.0,3643.1,0.099]
[1762737179592,0.4952,3644.5,3643.1,0.099]
[1762737179791,0.1854,3643.9,3643.2,0.28439233]
[1762737179996,0.4952,3644.5,3643.3,0.02744764]
[1762737180172,0.4952,3644.5,3643.3,0.405504]
[1762737180372,0.1854,3644.8,3643.2,0.405504]
[1762737180602,0.1854,3645.4,3644.0,0.405504]
[1762737180773,0.1854,3645.7,3644.7,1.448312]
[1762737180977,0.1854,3645.7,3644.8,0.02743634]
[1762737181199,0.1854,3645.7,3644.7,0.1886]
[1762737181397,0.1854,3645.7,3644.5,1.481]
[1762737181398,0.6806,3645.7,3644.5,1.481]
[1762737181578,0.6806,3645.7,3645.0,1.259712]
[1762737181912,0.1854,3645.7,3645.0,1.28714684]
[1762737182210,0.1805,3645.9,3645.1,1.448312]
[1762737182411,0.1805,3645.9,3645.3,1.259712]
[1762737182709,0.1805,3645.9,3645.1,3.35391219]
[1762737182920,0.1805,3645.9,3645.2,1.28714533]
[1762737183074,0.1805,3645.9,3645.2,0.02743333]
[1762737183280,0.1805,3645.9,3645.2,0.36556792]
[1762737183480,0.1805,3645.9,3645.2,1.62527992]
[1762737183997,0.1805,3645.9,3645.3,2.74318654]
[1762737184202,3.19243567,3646.6,3645.4,0.02743183]
[1762737184401,0.1854,3647.0,3645.1,0.58324787]
[1762737184402,2.74271138,3646.1,3645.1,1.259712]
[1762737184574,2.74276611,3646.0,3645.1,1.259712]
[1762737184780,2.74274561,3646.0,3645.1,1.259712]
[1762737184980,3.300504,3647.7,3644.7,0.405504]
[1762737184981,0.1805,3648.9,3646.3,2.74250324]
[1762737185183,0.1805,3648.9,3646.0,23.32270216]
[1762737185184,0.1805,3648.9,3648.0,1.259712]
[1762737185483,0.1805,3648.9,3647.6,0.405504]
[1762737185484,0.1805,3648.9,3647.9,1.481]
[1762737185712,0.0274395,3648.8,3647.9,1.481]
[1762737185896,0.6306,3648.9,3647.9,1.481]
[1762737186097,2.92106953,3648.9,3647.6,1.481]
[1762737186299,0.4501,3648.8,3647.7,1.28712653]
[1762737186526,0.4501,3648.8,3647.9,2.74130063]
[1762737186730,0.4501,3648.8,3647.9,2.76871366]
[1762737186900,0.4501,3648.8,3647.8,1.259712]
[1762737187101,0.4501,3648.8,3647.7,4.60605273]
[1762737187337,0.002,3649.2,3648.0,0.405504]
[1762737187628,0.002,3649.2,3648.1,0.02741152]
[1762737187784,0.002,3649.2,3648.2,1.481]
[1762737188215,0.002,3649.2,3648.2,4.22207317]
[1762737188414,0.4521,3649.2,3648.2,1.481]
[1762737188615,0.4521,3649.2,3648.2,2.740712]
[1762737188817,2.74055574,3648.9,3648.2,1.481]
[1762737189021,2.74048881,3649.0,3648.2,1.481]
[1762737189182,2.74055194,3648.9,3648.8,0.1368]
[1762737189383,3.19065194,3648.9,3648.8,0.1368]
[1762737189627,2.7408139,3648.6,3647.6,1.481]
[1762737189791,0.4501,3648.8,3648.5,0.1368]
[1762737189986,0.6306,3648.7,3648.5,0.1368]
[1762737190190,2.74077728,3648.6,3648.5,0.1368]
[1762737190442,0.4501,3648.6,3648.5,0.1368]
[1762737192092,0.1805,3648.7,3648.5,0.1368]
[1762737192829,0.002,3649.2,3648.6,0.1368]
[1762737193245,0.002,3649.2,3649.1,0.1368]
[1762737193387,0.002,3649.2,3648.7,5.06059486]
[1762737193736,0.002,3649.2,3649.1,2.74040174]
[1762737193886,0.002,3649.2,3649.1,0.69883599]
[1762737194087,0.002,3649.2,3649.1,5.48011374]
[1762737194404,0.002,3649.2,3649.1,5.94112175]
[1762737194899,0.002,3649.2,3649.1,6.37067814]
[1762737195243,0.002,3649.2,3649.1,1.693316]
[1762737195531,0.002,3649.2,3649.1,2.739712]
[1762737195740,0.002,3649.2,3648.0,2.74117166]
[1762737195741,0.002,3649.2,3648.8,1.48]
[1762737196302,0.002,3649.2,3648.1,5.37692652]
[1762737196502,0.002,3649.2,3648.5,1.48]
[1762737196713,0.002,3649.2,3648.3,1.48]
[1762737197142,2.74234435,3649.2,3648.3,1.48]
[1762737197320,2.74053426,3649.0,3648.0,1.48]
[1762737197632,2.74048321,3649.0,3648.1,1.259712]
[1762737197832,0.76934444,3649.1,3648.0,1.48]
[1762737197833,3.50975141,3649.1,3648.0,1.48]
[1762737197989,0.80127514,3649.0,3648.0,1.48]
[1762737198189,2.7408494,3648.6,3648.0,1.48]
[1762737198497,2.74090808,3648.5,3648.0,1.48]
[1762737198713,0.1805,3648.5,3648.0,1.48]
[1762737198923,0.4501,3648.4,3648.0,1.48]
[1762737199142,0.4501,3648.4,3647.4,1.48]
[1762737199446,3.19103352,3648.4,3647.4,2.739712]
[1762737199645,0.4501,3648.4,3647.2,1.48]
[1762737199944,2.7412299,3648.0,3647.2,1.48]
[1762737200155,2.74128425,3648.0,3647.2,1.48]
[1762737200307,0.1805,3647.9,3647.2,1.48]
[1762737200944,2.92181192,3647.9,3647.2,1.48]
[1762737201244,0.4501,3647.8,3646.9,1.19697567]
[1762737201443,3.19149445,3647.8,3646.9,1.19697567]
[1762737201611,0.4501,3647.8,3647.0,0.33937685]
[1762737201809,0.4501,3647.8,3646.9,1.19697567]
[1762737202012,2.74153547,3647.6,3646.9,1.19697567]
[1762737202216,0.4501,3647.8,3646.9,1.19697567]
[1762737202447,3.19152816,3647.8,3646.9,1.19697567]
[1762737202611,2.74158818,3647.6,3646.9,1.19697567]
[1762737202949,2.74158117,3647.6,3646.9,1.19697567]
[1762737203119,0.4501,3647.8,3646.9,1.19697567]
[1762737203444,2.74153099,3647.6,3647.5,0.1368]
[1762737203650,2.76897049,3647.6,3647.5,3.9868]
[1762737203816,3.19163099,3647.6,3647.5,3.9868]
[1762737204016,3.67003099,3647.6,3647.5,3.9868]
[1762737204238,1.57338231,3647.6,3646.9,1.19697567]
[1762737204549,0.4784,3647.0,3646.9,1.19697567]
[1762737205060,0.9285,3647.0,3646.8,0.1368]
[1762737205223,0.1805,3646.9,3646.8,0.1368]
[1762737205545,0.1805,3646.9,3646.0,1.481]
[1762737205546,1.109,3646.9,3646.0,0.001]
[1762737205759,0.1805,3646.9,3646.0,0.001]